bitfinex-derivatives/quotes_BTCF0:USTF0_20241223
["timestamp","ask_amount","ask_price","bid_price","bid_amount"]
[1734947316927,0.0873,96019.0,96018.0,0.412923]
[1734947317114,0.0903,96019.0,96018.0,0.412923]
[1734947318523,0.0903,96019.0,96018.0,0.413923]
[1734947318718,0.003,96019.0,96018.0,0.413923]
[1734947323416,0.002,96019.0,96018.0,0.413923]
[1734947324416,0.0878,96035.0,96034.0,0.052114]
[1734947324625,0.0878,96035.0,96034.0,0.412914]
[1734947325618,0.0908,96035.0,96034.0,0.413914]
[1734947325832,0.003,96035.0,96034.0,0.774714]
[1734947326021,0.0464,96049.0,96048.0,0.052106]
[1734947326327,0.0891,96054.0,96053.0,0.052104]
[1734947328530,0.0464,96061.0,96060.0,0.0521]
[1734947328731,0.0464,96061.0,96060.0,0.4129]
[1734947328929,0.0445,96064.0,96060.0,0.4129]
[1734947329123,0.0445,96064.0,96063.0,0.052098]
[1734947331326,0.0445,96064.0,96063.0,0.053098]
[1734947335424,0.0445,96064.0,96063.0,0.06365416]
[1734947340235,0.096598,96064.0,96063.0,0.06365416]
[1734947340528,0.096598,96064.0,96063.0,0.001]
[1734947340729,0.096598,96064.0,96063.0,0.053098]
[1734947347845,0.096598,96064.0,96063.0,0.001]
[1734947349434,0.096598,96064.0,96060.0,0.3608]
[1734947349630,0.052099,96061.0,96060.0,0.3608]
[1734947350736,0.052099,96061.0,96060.0,0.3618]
[1734947353642,0.06012812,96061.0,96060.0,0.3618]
[1734947353841,0.052099,96061.0,96060.0,0.3618]
[1734947354344,0.06012812,96061.0,96060.0,0.3618]
[1734947354738,0.06664077,96061.0,96060.0,0.3618]
[1734947355145,0.06012812,96061.0,96060.0,0.3618]
[1734947355343,0.06664077,96061.0,96060.0,0.3618]
[1734947356738,0.05861165,96061.0,96060.0,0.3618]
[1734947356944,0.06665059,96061.0,96060.0,0.3618]
[1734947357243,0.05861165,96061.0,96060.0,0.3618]
[1734947358137,0.06665233,96061.0,96060.0,0.3618]
[1734947358335,0.052103,96054.0,96053.0,0.18580054]
[1734947358733,0.052103,96054.0,96053.0,0.11740054]
[1734947358734,0.06665656,96054.0,96053.0,0.11740054]
[1734947358945,0.08229656,96054.0,96053.0,0.04900054]
[1734947359343,0.07578391,96054.0,96053.0,0.04900054]
[1734947359655,0.052103,96054.0,96053.0,0.10110454]
[1734947359840,0.2088634,96054.0,96053.0,1.553104]
[1734947361736,0.053103,96054.0,96053.0,1.553104]
[1734947362844,0.053103,96054.0,96053.0,0.053104]
[1734947364347,0.053103,96054.0,96053.0,0.001]
[1734947370052,0.2088634,96054.0,96053.0,0.001]
[1734947371353,0.053103,96054.0,96053.0,0.001]
[1734947372948,0.06116478,96054.0,96053.0,0.001]
[1734947373148,0.053103,96054.0,96053.0,0.001]
[1734947373349,0.06115765,96054.0,96053.0,0.001]
[1734947374548,0.21691805,96054.0,96053.0,0.001]
[1734947375052,0.2088634,96054.0,96053.0,0.001]
[1734947376452,0.21691805,96054.0,96053.0,0.001]
[1734947376651,0.2088634,96054.0,96053.0,0.001]
[1734947377051,0.21691805,96054.0,96053.0,0.001]
[1734947377255,0.2088634,96054.0,96053.0,0.001]
[1734947377456,0.21691805,96054.0,96053.0,0.001]
[1734947377760,0.2088634,96054.0,96053.0,0.001]
[1734947377957,0.21691805,96054.0,96053.0,0.001]
[1734947378154,0.2088634,96054.0,96053.0,0.001]
[1734947378462,0.21691805,96054.0,96053.0,0.001]
[1734947378755,0.2088634,96054.0,96053.0,0.001]
[1734947379057,0.21691805,96054.0,96053.0,0.001]
[1734947379255,0.2088634,96054.0,96053.0,0.001]
[1734947379451,0.21691937,96054.0,96053.0,0.001]
[1734947379651,0.06115897,96054.0,96053.0,0.001]
[1734947379845,0.06115478,96054.0,96053.0,0.001]
[1734947380051,0.053103,96054.0,96053.0,0.001]
[1734947380354,0.06115478,96054.0,96053.0,0.001]
[1734947380657,0.053103,96054.0,96053.0,0.001]
[1734947381259,0.001,96054.0,96053.0,0.053104]
[1734947381661,0.001,96054.0,96053.0,1.553104]
[1734947382560,0.001,96054.0,96053.0,1.5633976]
[1734947384552,0.09364467,96061.0,96060.0,0.0521]
[1734947384758,0.09364467,96061.0,96060.0,0.4129]
[1734947384959,0.09364467,96062.0,96061.0,0.052099]
[1734947386157,0.07006688,96075.0,96061.0,0.052099]
[1734947386158,0.09364467,96070.0,96061.0,0.052099]
[1734947386364,0.14573867,96070.0,96069.0,0.412895]
[1734947387563,0.052094,96070.0,96069.0,0.412895]
[1734947388861,0.052094,96070.0,96069.0,0.413895]
[1734947391694,0.14558047,96070.0,96069.0,0.413895]
[1734947392681,0.09348647,96070.0,96069.0,0.413895]
[1734947392887,0.12485956,96076.0,96075.0,0.052092]
[1734947393086,0.12485956,96078.0,96077.0,0.052091]
[1734947393396,0.12485956,96078.0,96077.0,1.552091]
[1734947394294,0.052085,96089.0,96077.0,1.552091]
[1734947394595,0.052085,96089.0,96088.0,0.052085]
[1734947395188,0.052082,96094.0,96093.0,0.05208]
[1734947395389,0.052082,96094.0,96093.0,0.41288]
[1734947395984,0.052082,96094.0,96093.0,0.3608]
[1734947396889,0.053082,96094.0,96093.0,0.3618]
[1734947399096,0.053082,96094.0,96093.0,0.413882]
[1734947399496,0.001,96094.0,96093.0,0.413882]
[1734947401891,0.001,96094.0,96093.0,1.913882]
[1734947402307,0.001,96094.0,96093.0,0.413882]
[1734947403496,0.053081,96094.0,96093.0,0.413882]
[1734947404006,0.053081,96094.0,96093.0,0.3618]
[1734947404396,0.053081,96094.0,96093.0,0.413882]
[1734947406699,0.001,96094.0,96093.0,0.413882]
[1734947407304,0.001,96094.0,96093.0,1.913882]
[1734947408694,0.1669949,96114.0,96113.0,0.052071]
[1734947408898,0.1242949,96114.0,96113.0,0.412871]
[1734947409295,0.0857,96128.0,96113.0,0.412871]
[1734947409296,0.1242949,96116.0,96115.0,0.05207]
[1734947409891,0.1242949,96116.0,96115.0,1.55207]
[1734947411003,0.0427,96128.0,96115.0,1.5]
[1734947411207,0.0427,96128.0,96127.0,0.3608]
[1734947411511,0.052065,96125.0,96124.0,0.3608]
[1734947411697,0.052069,96117.0,96116.0,0.3608]
[1734947411894,0.3608,96121.0,96104.0,0.3608]
[1734947412095,0.08347265,96120.0,96104.0,0.3608]
[1734947412302,0.052075,96105.0,96104.0,0.3608]
[1734947412497,0.37112425,96121.0,96104.0,0.3608]
[1734947412498,0.052068,96120.0,96104.0,0.3608]
[1734947412812,0.3608,96121.0,96110.0,0.08347265]
[1734947413602,0.3608,96121.0,96104.0,0.3618]
[1734947413801,0.0404,96124.0,96104.0,0.3618]
[1734947414107,0.052072,96112.0,96104.0,0.3618]
[1734947414807,0.052074,96109.0,96104.0,0.3618]
[1734947415002,0.001,96121.0,96104.0,0.3618]
[1734947415203,0.052072,96111.0,96110.0,0.08347265]
[1734947415404,0.002,96112.0,96104.0,0.3608]
[1734947415605,0.052074,96108.0,96104.0,0.3608]
[1734947416196,0.052075,96106.0,96104.0,0.3618]
[1734947416505,0.002,96109.0,96088.0,0.24775537]
[1734947416506,0.052075,96105.0,96088.0,0.24775537]
[1734947416804,0.052075,96105.0,96080.0,0.44525586]
[1734947416805,0.052084,96089.0,96087.0,0.24775537]
[1734947417799,0.0443,96088.0,96087.0,0.24775537]
[1734947418100,0.0443,96088.0,96080.0,1.58347265]
[1734947418101,0.0443,96088.0,96080.0,1.58499265]
[1734947418299,0.052088,96081.0,96080.0,1.5]
[1734947419298,0.052093,96073.0,96071.0,0.24775537]
[1734947419714,0.052094,96071.0,96060.0,0.1669453]
[1734947419916,0.052094,96071.0,96070.0,1.5]
[1734947420210,0.0433,96072.0,96070.0,1.5]
[1734947421707,0.0433,96072.0,96070.0,1.501]
[1734947421907,0.0433,96072.0,96071.0,0.001]
[1734947422612,0.0433,96072.0,96071.0,1.5]
[1734947423513,0.0433,96072.0,96070.0,0.001]
[1734947423706,0.052094,96071.0,96070.0,0.001]
[1734947423912,0.052094,96071.0,96070.0,1.501]
[1734947424710,0.052094,96071.0,96070.0,0.001]
[1734947425010,0.052094,96071.0,96069.0,0.3608]
[1734947425011,0.137694,96071.0,96069.0,0.3608]
[1734947425614,0.052097,96066.0,96064.0,0.3608]
[1734947426707,0.052097,96066.0,96065.0,0.00112783]
[1734947426906,0.0406,96071.0,96065.0,0.00112783]
[1734947427107,0.052096,96067.0,96065.0,0.00112783]
[1734947427614,0.001,96066.0,96065.0,0.00112783]
[1734947428116,0.052096,96067.0,96065.0,0.00112783]
[1734947428310,0.053096,96067.0,96065.0,0.00012783]
[1734947428509,0.053096,96067.0,96065.0,0.00112783]
[1734947428709,0.052096,96067.0,96065.0,0.00112783]
[1734947428906,0.001,96066.0,96065.0,0.00112783]
[1734947429115,0.001,96066.0,96065.0,0.00012783]
[1734947429415,0.001,96066.0,96065.0,0.00112783]
[1734947430011,0.001,96066.0,96065.0,0.00012783]
[1734947430426,0.053096,96067.0,96065.0,0.00012783]
[1734947430913,0.001,96066.0,96065.0,0.00012783]
[1734947431613,0.053096,96067.0,96065.0,0.00012783]
[1734947432009,0.052096,96067.0,96065.0,0.00012783]
[1734947432208,0.001,96066.0,96065.0,0.00012783]
[1734947432709,0.3618,96066.0,96065.0,0.00012783]
[1734947433711,0.3608,96066.0,96065.0,0.00012783]
[1734947434102,0.3618,96066.0,96065.0,0.00112783]
[1734947437122,0.3618,96066.0,96065.0,0.00012783]
[1734947437616,0.052096,96067.0,96065.0,0.00012783]
[1734947437814,0.001,96066.0,96065.0,0.00012783]
[1734947438212,0.001,96066.0,96065.0,0.36092783]
[1734947439414,0.001,96066.0,96065.0,0.37230338]
[1734947439609,0.001,96067.0,96066.0,0.052097]
[1734947440214,0.0433,96072.0,96066.0,0.052097]
[1734947440624,0.0433,96072.0,96065.0,0.37430338]
[1734947440825,0.052092,96074.0,96070.0,0.052094]
[1734947441622,0.052096,96068.0,96066.0,0.001]
[1734947442117,0.052096,96068.0,96066.0,0.003]
[1734947442324,0.052096,96068.0,96066.0,0.002]
[1734947442721,0.09911265,96080.0,96065.0,0.36092783]
[1734947442722,0.052097,96066.0,96065.0,0.36092783]
[1734947444220,0.053097,96066.0,96065.0,0.36092783]
[1734947445618,0.052097,96066.0,96065.0,0.36092783]
[1734947445821,0.053097,96066.0,96065.0,0.36092783]
[1734947447424,0.06113179,96066.0,96065.0,0.36092783]
[1734947447625,0.053097,96066.0,96065.0,0.36092783]
[1734947448823,0.057097,96066.0,96065.0,0.36092783]
[1734947449226,0.052097,96066.0,96065.0,0.36092783]
[1734947449426,0.057097,96066.0,96065.0,0.36092783]
[1734947450518,0.056097,96066.0,96065.0,0.00012783]
[1734947451118,0.056097,96066.0,96065.0,0.36092783]
[1734947451719,0.1803919,96066.0,96065.0,0.36092783]
[1734947451919,0.1763919,96066.0,96065.0,0.36092783]
[1734947452127,0.1813919,96066.0,96065.0,0.36092783]
[1734947452726,0.1793919,96066.0,96065.0,0.36092783]
[1734947453129,0.1763919,96066.0,96065.0,0.36092783]
[1734947453328,0.1793919,96066.0,96065.0,0.36092783]
[1734947453528,0.055097,96066.0,96065.0,0.36092783]
[1734947453830,0.055097,96066.0,96065.0,0.00012783]
[1734947454633,0.06315072,96066.0,96065.0,0.00012783]
[1734947454827,0.42495072,96066.0,96065.0,0.00012783]
[1734947455129,0.42495072,96066.0,96061.0,0.24775537]
[1734947455130,0.052099,96062.0,96061.0,0.24775537]
[1734947455430,0.06015621,96062.0,96061.0,0.24775537]
[1734947456022,0.0602305,96062.0,96061.0,0.24775537]
[1734947456526,0.052101,96058.0,96057.0,0.3608]
[1734947458825,0.056101,96058.0,96057.0,0.3608]
[1734947459324,0.055101,96058.0,96057.0,0.3608]
[1734947462533,0.056101,96058.0,96057.0,0.3608]
[1734947463435,0.18093948,96058.0,96057.0,0.3608]
[1734947464133,0.17793948,96058.0,96057.0,0.3608]
[1734947464325,0.17793948,96058.0,96057.0,0.3618]
[1734947465834,0.17993948,96058.0,96057.0,0.3608]
[1734947466232,0.18093948,96058.0,96057.0,0.3608]
[1734947468340,0.056101,96058.0,96057.0,0.3608]
[1734947468543,0.052104,96052.0,96051.0,0.24775537]
[1734947469040,0.06014397,96052.0,96051.0,0.24775537]
[1734947469540,0.052104,96052.0,96051.0,0.24775537]
[1734947469740,0.05211,96042.0,96041.0,0.24775537]
[1734947471140,0.16389928,96047.0,96036.0,0.24775537]
[1734947471439,0.052111,96041.0,96036.0,0.24775537]
[1734947471746,0.052111,96039.0,96036.0,0.24775537]
[1734947471936,0.052112,96038.0,96036.0,0.24775537]
[1734947472439,0.052112,96037.0,96035.0,0.01014109]
[1734947472742,0.052112,96037.0,96036.0,0.005]
[1734947473242,0.052112,96037.0,96036.0,0.004]
[1734947473939,0.054112,96037.0,96036.0,0.004]
[1734947474140,0.054112,96037.0,96036.0,0.001]
[1734947474940,0.05421901,96037.0,96036.0,0.001]
[1734947475838,0.052114,96034.0,96033.0,0.24775537]
[1734947476546,0.052118,96027.0,96025.0,0.0103379]
[1734947476741,0.00510701,96037.0,96021.0,0.3608]
[1734947476742,0.052118,96026.0,96021.0,0.3608]
[1734947477243,0.005,96034.0,96021.0,0.3608]
[1734947477747,0.05212,96023.0,96021.0,0.3608]
[1734947478951,0.05212,96023.0,96021.0,0.3618]
[1734947479340,0.05412,96023.0,96021.0,0.37197146]
[1734947479846,0.05312,96023.0,96021.0,0.37197146]
[1734947480841,0.05212,96023.0,96021.0,0.37197146]
[1734947481046,0.05412,96023.0,96021.0,0.37197146]
[1734947481346,0.05412,96023.0,96021.0,0.3618]
[1734947482238,0.05412,96023.0,96021.0,0.001]
[1734947482742,0.052123,96017.0,96013.0,0.54758884]
[1734947483143,0.052123,96017.0,96014.0,0.01053162]
[1734947484853,0.052123,96017.0,96015.0,0.0020742]
[1734947485552,0.09222,96024.0,96015.0,0.0020742]
[1734947485753,0.05212,96024.0,96015.0,0.0020742]
[1734947485936,0.05212,96024.0,96018.0,0.052122]
[1734947487040,0.0396,96026.0,96015.0,0.0020742]
[1734947487236,0.052123,96018.0,96015.0,0.0020742]
[1734947487742,0.052124,96017.0,96015.0,0.0020742]
[1734947489142,0.052124,96017.0,96015.0,0.0040742]
[1734947489650,0.052124,96017.0,96015.0,0.0020742]
[1734947494344,0.052119,96024.0,96015.0,0.0020742]
[1734947494759,0.0396,96026.0,96015.0,0.0020742]
[1734947494960,0.05212,96023.0,96015.0,0.0020742]
[1734947495154,0.05212,96023.0,96015.0,0.0541982]
[1734947495350,0.0396,96026.0,96023.0,0.052119]
[1734947495551,0.0396,96026.0,96015.0,0.0020742]
[1734947495860,0.052116,96030.0,96024.0,0.052119]
[1734947497059,0.052116,96030.0,96024.0,0.001]
[1734947497259,0.12465648,96035.0,96025.0,0.0775]
[1734947497451,0.12465648,96035.0,96030.0,0.3608]
[1734947497761,0.0389,96036.0,96030.0,0.3608]
[1734947497762,0.12465648,96036.0,96030.0,0.3608]
[1734947498255,0.12465648,96036.0,96034.0,0.052114]
[1734947499460,0.001,96035.0,96034.0,0.052114]
[1734947499659,0.001,96035.0,96034.0,0.053114]
[1734947499864,0.00156247,96040.0,96034.0,0.053114]
[1734947500054,0.002,96036.0,96034.0,0.053114]
[1734947500360,0.002,96036.0,96035.0,1.5]
[1734947500564,0.052112,96038.0,96035.0,1.5]
[1734947500755,0.00156247,96040.0,96035.0,1.552113]
[1734947502258,0.002,96036.0,96035.0,1.552113]
[1734947502760,0.00210701,96037.0,96035.0,1.552113]
[1734947503160,0.00210701,96037.0,96035.0,1.553113]
[1734947503354,0.002,96036.0,96035.0,1.553113]
[1734947503561,0.002,96036.0,96035.0,0.053113]
[1734947505476,0.00010701,96037.0,96035.0,0.053113]
[1734947505663,0.00210701,96037.0,96035.0,0.053113]
[1734947506166,0.002,96036.0,96035.0,0.053113]
[1734947506767,0.00210701,96037.0,96035.0,0.053113]
[1734947507364,0.002,96036.0,96035.0,0.053113]
[1734947508973,0.00210701,96037.0,96035.0,0.053113]
[1734947509862,0.00210701,96037.0,96036.0,0.18687768]
[1734947510061,0.12465648,96055.0,96036.0,0.18687768]
[1734947510270,0.12465648,96055.0,96054.0,0.052103]
[1734947510774,0.12465648,96055.0,96054.0,1.552103]
[1734947510964,0.12465648,96055.0,96054.0,1.5]
[1734947511365,0.052102,96056.0,96054.0,1.5]
[1734947512174,0.052104,96053.0,96051.0,0.3608]
[1734947512560,0.005,96055.0,96047.0,0.18687768]
[1734947512767,0.005,96055.0,96043.0,0.18687768]
[1734947512977,0.052107,96048.0,96043.0,0.18687768]
[1734947513176,0.052102,96055.0,96046.0,0.052107]
[1734947513676,0.057102,96055.0,96047.0,0.001]
[1734947513872,0.005,96055.0,96047.0,0.001]
[1734947514069,0.052104,96053.0,96047.0,0.001]
[1734947515276,0.052104,96053.0,96046.0,0.053107]
[1734947515680,0.052104,96053.0,96046.0,0.052107]
[1734947515976,0.052104,96053.0,96042.0,0.3608]
[1734947515977,0.005,96053.0,96049.0,0.052105]
[1734947516369,0.09337069,96057.0,96049.0,0.052105]
[1734947516565,0.005,96053.0,96049.0,0.052105]
[1734947517276,0.005,96053.0,96050.0,0.052105]
[1734947518378,0.052102,96057.0,96050.0,0.052105]
[1734947518379,0.057102,96057.0,96050.0,0.052105]
[1734947518979,0.005,96053.0,96050.0,0.053105]
[1734947519476,0.057102,96057.0,96050.0,0.053105]
[1734947520974,0.005,96057.0,96050.0,0.053105]
[1734947521176,0.005,96053.0,96050.0,0.053105]
[1734947521577,0.057104,96053.0,96050.0,0.001]
[1734947521878,0.052104,96053.0,96050.0,0.001]
[1734947522279,0.052104,96053.0,96049.0,0.01041107]
[1734947522470,0.052104,96053.0,96052.0,0.3608]
[1734947522471,0.057104,96053.0,96052.0,0.3608]
[1734947522672,0.057104,96053.0,96050.0,0.001]
[1734947522980,0.005,96053.0,96052.0,0.3608]
[1734947523376,0.057104,96053.0,96050.0,0.001]
[1734947523686,0.052105,96051.0,96050.0,0.001]
[1734947523881,0.005,96053.0,96052.0,0.052104]
[1734947524480,0.005,96053.0,96052.0,1.552104]
[1734947524781,0.08991671,96061.0,96052.0,1.5]
[1734947525083,0.08991671,96061.0,96060.0,0.4129]
[1734947526585,0.0402,96074.0,96060.0,0.3608]
[1734947526880,0.0402,96074.0,96070.0,0.052094]
[1734947527989,0.0402,96074.0,96071.0,0.18695253]
[1734947529187,0.05365514,96072.0,96071.0,0.18795253]
[1734947529772,0.05365514,96072.0,96071.0,0.12335253]
[1734947530773,0.05365514,96072.0,96071.0,0.001]
[1734947538987,0.06929514,96072.0,96071.0,0.001]
[1734947542589,0.07733557,96072.0,96071.0,0.001]
[1734947543005,0.052101,96057.0,96051.0,0.24927004]
[1734947543189,0.052104,96052.0,96051.0,0.24927004]
[1734947543391,0.052104,96052.0,96050.0,0.25083157]
[1734947544398,0.052104,96052.0,96051.0,0.001]
[1734947545202,0.052104,96052.0,96050.0,0.00156153]
[1734947546798,0.054104,96052.0,96050.0,0.00156153]
[1734947547305,0.052104,96052.0,96050.0,0.00156153]
[1734947547488,0.054104,96052.0,96050.0,0.00156153]
[1734947547890,0.052104,96052.0,96050.0,0.00156153]
[1734947548095,0.054104,96052.0,96050.0,0.00156153]
[1734947549503,0.053104,96052.0,96050.0,0.00156153]
[1734947550306,0.052111,96039.0,96038.0,0.24927004]
[1734947551303,0.08347265,96048.0,96026.0,0.01018595]
[1734947551304,0.052117,96028.0,96026.0,0.01018595]
[1734947551511,0.052117,96028.0,96023.0,0.24927004]
[1734947552208,0.052117,96028.0,96023.0,0.25990054]
[1734947552407,0.20797931,96040.0,96026.0,0.3608]
[1734947552715,0.052113,96036.0,96030.0,0.08347265]
[1734947553011,0.052113,96036.0,96027.0,0.052117]
[1734947553215,0.052114,96035.0,96027.0,0.052117]
[1734947553400,0.12450666,96041.0,96027.0,0.052117]
[1734947553607,0.052114,96034.0,96027.0,0.052117]
[1734947554016,0.052114,96034.0,96030.0,0.002]
[1734947554612,0.052114,96034.0,96027.0,0.054117]
[1734947554914,0.052114,96034.0,96027.0,0.057117]
[1734947555503,0.052115,96033.0,96027.0,0.057117]
[1734947555715,0.052115,96033.0,96030.0,0.054116]
[1734947556109,0.052115,96033.0,96030.0,0.055116]
[1734947556308,0.052115,96033.0,96031.0,1.5]
[1734947557917,0.052115,96033.0,96031.0,1.501]
[1734947558313,0.052115,96033.0,96031.0,1.503]
[1734947558712,0.052115,96033.0,96032.0,0.0416]
[1734947559426,0.052115,96033.0,96032.0,1.5416]
[1734947561726,0.052115,96033.0,96032.0,1.5436]
[1734947562125,0.052115,96033.0,96032.0,0.002]
[1734947562523,0.052118,96028.0,96026.0,2.11007004]
[1734947563817,0.052118,96028.0,96026.0,1.8608]
[1734947565533,0.052118,96028.0,96026.0,1.912918]
[1734947565736,0.052118,96028.0,96026.0,2.16218804]
[1734947565929,0.052118,96028.0,96026.0,2.16418804]
[1734947566130,0.052118,96028.0,96026.0,2.16618804]
[1734947566530,0.052118,96028.0,96026.0,2.16418804]
[1734947566727,0.052118,96028.0,96026.0,2.16518804]
[1734947568435,0.052118,96028.0,96027.0,0.24927004]
[1734947569640,0.052118,96028.0,96027.0,0.001]
[1734947571043,0.17661666,96042.0,96027.0,0.001]
[1734947571233,0.17661666,96042.0,96041.0,0.3608]
[1734947572828,0.05311,96042.0,96041.0,0.3608]
[1734947574947,0.05211,96041.0,96035.0,0.249569]
[1734947575247,0.052111,96040.0,96036.0,0.249569]
[1734947576241,0.052111,96040.0,96035.0,0.249569]
[1734947576435,0.06020017,96040.0,96035.0,0.249569]
[1734947576637,0.00808917,96039.0,96035.0,0.249569]
[1734947577445,0.00808917,96038.0,96036.0,0.301682]
[1734947578545,0.00808917,96037.0,96036.0,0.301682]
[1734947578744,0.00808917,96037.0,96036.0,0.052113]
[1734947579744,0.13259583,96037.0,96036.0,0.052113]
[1734947580144,0.13359583,96037.0,96036.0,0.052113]
[1734947580648,0.12550666,96037.0,96036.0,0.412913]
[1734947582341,0.001,96037.0,96036.0,0.92869334]
[1734947583551,0.001,96037.0,96036.0,0.412913]
[1734947584744,0.001,96037.0,96036.0,0.72260721]
[1734947585846,0.001,96037.0,96036.0,0.412913]
[1734947590756,0.12450666,96042.0,96041.0,0.05211]
[1734947590946,0.0350101,96042.0,96041.0,0.41291]
[1734947591249,0.15536862,96048.0,96041.0,0.56901381]
[1734947591454,0.15536862,96048.0,96047.0,0.412907]
[1734947591854,0.15536862,96048.0,96047.0,0.3608]
[1734947592154,0.052106,96049.0,96047.0,0.3608]
[1734947592155,0.129606,96049.0,96047.0,0.3608]
[1734947592452,0.052108,96045.0,96040.0,0.05211]
[1734947592651,0.0775,96049.0,96040.0,0.05211]
[1734947592652,0.05211,96042.0,96040.0,0.05211]
[1734947593156,0.052107,96047.0,96036.0,0.20975547]
[1734947593450,0.052111,96039.0,96036.0,0.20975547]
[1734947593658,0.052111,96039.0,96036.0,0.052113]
[1734947593847,0.052111,96039.0,96037.0,0.052112]
[1734947594042,0.0375,96047.0,96035.0,0.3608]
[1734947594255,0.052108,96045.0,96043.0,0.3608]
[1734947594448,0.052108,96045.0,96043.0,0.412909]
[1734947594644,0.0375,96047.0,96045.0,0.052107]
[1734947594955,0.0775,96049.0,96048.0,0.052106]
[1734947595152,0.052104,96053.0,96046.0,1.50156]
[1734947595355,0.15536862,96054.0,96046.0,1.5]
[1734947595546,0.15536862,96054.0,96053.0,0.052104]
[1734947595946,0.052102,96057.0,96053.0,0.052104]
[1734947598563,0.052102,96057.0,96053.0,0.053104]
[1734947598751,0.0389,96064.0,96053.0,0.053104]
[1734947598752,0.00810587,96064.0,96062.0,0.052099]
[1734947599050,0.00810587,96064.0,96053.0,0.001]
[1734947599051,0.01620655,96076.0,96064.0,0.052098]
[1734947599263,0.01620655,96076.0,96064.0,0.412898]
[1734947599458,0.00156189,96079.0,96064.0,0.412898]
[1734947599851,0.00156189,96079.0,96075.0,0.052092]
[1734947600257,0.00156189,96079.0,96077.0,0.05209]
[1734947601048,0.00156189,96079.0,96064.0,1.8608]
[1734947601251,0.052094,96072.0,96067.0,0.052096]
[1734947601551,0.0392,96071.0,96067.0,0.052096]
[1734947602061,0.0392,96071.0,96065.0,0.24932325]
[1734947602354,0.412897,96066.0,96065.0,0.24932325]
[1734947602551,0.412897,96066.0,96040.0,0.44427265]
[1734947602552,0.052099,96061.0,96060.0,0.24932325]
[1734947604052,0.052103,96054.0,96053.0,0.00156148]
[1734947604761,0.3608,96058.0,96043.0,0.24932325]
[1734947604961,0.052107,96047.0,96043.0,0.24932325]
[1734947605163,0.0389,96046.0,96043.0,0.24932325]
[1734947605354,0.0389,96046.0,96040.0,0.3608]
[1734947605551,0.05211,96042.0,96038.0,0.24932325]
[1734947607259,0.05211,96042.0,96036.0,0.052113]
[1734947607564,0.052111,96041.0,96030.0,0.3608]
[1734947607747,0.052111,96041.0,96038.0,0.001]
[1734947607950,0.0378,96040.0,96038.0,0.001]
[1734947609359,0.0378,96040.0,96031.0,0.052115]
[1734947609556,0.0378,96040.0,96036.0,0.001]
[1734947609863,0.052112,96038.0,96036.0,0.001]
[1734947610260,0.052112,96038.0,96031.0,0.052115]
[1734947611062,0.052112,96038.0,96036.0,0.001]
[1734947612667,0.052112,96038.0,96032.0,0.3608]
[1734947613570,0.0378,96040.0,96036.0,0.001]
[1734947614570,0.0378,96040.0,96035.0,0.052113]
[1734947616169,0.0378,96040.0,96036.0,0.002]
[1734947616969,0.0378,96040.0,96035.0,0.053113]
[1734947617668,0.0378,96040.0,96035.0,0.052113]
[1734947617872,0.0378,96040.0,96036.0,0.001]
[1734947619469,0.0378,96040.0,96035.0,0.053113]
[1734947619666,0.0378,96040.0,96035.0,0.001]
[1734947619972,0.0378,96040.0,96037.0,0.052112]
[1734947620270,0.0378,96040.0,96038.0,0.052112]
[1734947622972,0.0378,96040.0,96038.0,0.053112]
[1734947623364,0.089911,96040.0,96038.0,0.053112]
[1734947625974,0.089911,96040.0,96038.0,0.06332844]
[1734947626569,0.089911,96040.0,96038.0,0.053112]
[1734947627769,0.089911,96040.0,96038.0,0.001]
[1734947629372,0.0378,96040.0,96034.0,0.01049312]
[1734947629566,0.0378,96040.0,96032.0,0.412915]
[1734947629567,0.052111,96039.0,96032.0,0.412915]
[1734947630166,0.052111,96039.0,96035.0,0.052113]
[1734947630371,0.01564,96044.0,96032.0,0.37122135]
[1734947630677,0.01564,96044.0,96033.0,1.5]
[1734947631066,0.067749,96044.0,96039.0,0.052111]
[1734947631271,0.052109,96043.0,96039.0,0.052111]
[1734947631473,0.052111,96039.0,96033.0,1.50152]
[1734947631667,0.052112,96038.0,96033.0,1.552114]
[1734947631972,0.052112,96037.0,96034.0,0.24932325]
[1734947632682,0.052112,96037.0,96034.0,0.30143725]
[1734947632976,0.052113,96036.0,96034.0,0.24932325]
[1734947633175,0.052114,96034.0,96033.0,0.002]
[1734947633377,0.052115,96032.0,96028.0,0.31217283]
[1734947633577,0.06021568,96031.0,96028.0,0.31217283]
[1734947633779,0.00809968,96030.0,96028.0,0.31217283]
[1734947633975,0.00809968,96029.0,96028.0,0.31217283]
[1734947634171,0.04789968,96029.0,96028.0,0.31217283]
[1734947634380,0.0398,96029.0,96028.0,0.31217283]
[1734947634582,0.0398,96029.0,96028.0,0.24993602]
[1734947635277,0.0398,96029.0,96028.0,0.25093602]
[1734947635685,0.0398,96029.0,96028.0,0.24993602]
[1734947635880,0.091917,96029.0,96028.0,0.002]
[1734947638977,0.05544,96029.0,96022.0,0.01061574]
[1734947639175,0.052117,96028.0,96020.0,0.00156189]
[1734947639782,0.01564,96027.0,96020.0,0.00156189]
[1734947639977,0.067758,96027.0,96020.0,0.00156189]
[1734947640677,0.067758,96027.0,96020.0,0.00256189]
[1734947640990,0.428558,96027.0,96023.0,0.052119]
[1734947641377,0.412918,96027.0,96023.0,0.052119]
[1734947641780,0.412918,96027.0,96024.0,1.5]
[1734947642881,0.052118,96027.0,96024.0,1.552119]
[1734947643275,0.052118,96027.0,96024.0,1.553119]
[1734947643481,0.15536862,96034.0,96026.0,0.3608]
[1734947643676,0.15536862,96034.0,96033.0,0.052114]